bitfinex-derivatives/quotes_BTCF0:USTF0_20210108
["timestamp","ask_amount","ask_price","bid_price","bid_amount"]
[1610081343902,0.48656595,38691.0,38677.0,2.9857]
[1610081344101,0.48656595,38691.0,38690.0,0.13632608]
[1610081344305,0.48661623,38697.0,38690.0,4.47214608]
[1610081344502,0.48661623,38697.0,38690.0,4.50413295]
[1610081344706,0.48656749,38702.0,38690.0,0.29403295]
[1610081344903,0.48656749,38702.0,38691.0,0.19022435]
[1610081345104,0.56483866,38704.0,38691.0,0.19022435]
[1610081345105,0.01584121,38704.0,38695.0,3.2254]
[1610081345807,0.56479395,38707.0,38695.0,3.2254]
[1610081345808,0.01583567,38707.0,38695.0,3.2254]
[1610081346206,0.0158343,38709.0,38706.0,0.13632608]
[1610081346404,0.0158343,38709.0,38708.0,4.0827]
[1610081346608,0.0158241,38713.0,38708.0,4.0827]
[1610081346808,0.0158241,38713.0,38707.0,0.03197223]
[1610081347008,0.01582263,38718.0,38711.0,3.0294]
[1610081347407,0.01582263,38718.0,38712.0,0.09523024]
[1610081347807,0.485904,38720.0,38712.0,0.09523024]
[1610081348206,0.56406844,38722.0,38712.0,0.09523024]
[1610081348207,0.0158079,38722.0,38719.0,0.13632608]
[1610081348406,0.0158079,38722.0,38719.0,0.21975608]
[1610081348606,0.56360636,38725.0,38719.0,0.21975608]
[1610081348607,0.01579541,38724.0,38719.0,0.21975608]
[1610081348807,0.01579541,38724.0,38720.0,0.03196471]
[1610081349006,0.46936939,38721.0,38720.0,0.03196471]
[1610081349407,1.03258973,38721.0,38720.0,0.03196471]
[1610081351010,1.03258973,38721.0,38720.0,0.00033504]
[1610081351311,0.46936939,38721.0,38720.0,0.00033504]
[1610081351711,0.01577274,38721.0,38720.0,0.00033504]
[1610081351911,0.01577274,38721.0,38720.0,3.38693504]
[1610081352110,0.48442544,38722.0,38720.0,3.38693504]
[1610081352513,0.13632608,38735.0,38720.0,3.38693504]
[1610081352514,0.01576326,38726.0,38720.0,3.41856085]
[1610081352810,0.48412374,38729.0,38721.0,0.03196025]
[1610081353413,0.01576123,38730.0,38721.0,0.03196025]
[1610081353811,0.4679996,38734.0,38721.0,0.03196025]
[1610081354212,0.01575046,38734.0,38733.0,0.13632608]
[1610081354412,0.01575046,38734.0,38733.0,0.84461608]
[1610081354612,0.48373102,38735.0,38733.0,0.84461608]
[1610081354813,0.48373102,38735.0,38733.0,0.84495102]
[1610081355013,0.01573962,38735.0,38734.0,0.00033494]
[1610081355414,0.01572683,38737.0,38734.0,0.00033494]
[1610081355817,0.4830158,38738.0,38734.0,0.00033494]
[1610081356215,0.48299309,38739.0,38737.0,0.13632608]
[1610081356615,0.48299309,38739.0,38738.0,0.0003349]
[1610081356817,0.01572608,38739.0,38738.0,0.0003349]
[1610081357216,0.01571364,38741.0,38738.0,0.0003349]
[1610081357615,0.01570178,38742.0,38738.0,0.0003349]
[1610081358015,0.46659505,38739.0,38738.0,0.0003349]
[1610081358216,0.60292113,38739.0,38735.0,0.50033492]
[1610081358418,1.16260825,38739.0,38735.0,0.4996651]
[1610081358816,1.71020274,38736.0,38735.0,0.4996651]
[1610081359216,1.71020274,38736.0,38735.0,0.50000006]
[1610081359416,1.71020274,38736.0,38735.0,0.4996651]
[1610081360117,1.71020274,38736.0,38735.0,0.50000008]
[1610081361620,1.71020274,38736.0,38735.0,0.09248849]
[1610081362220,1.02615273,38736.0,38735.0,0.09248849]
[1610081363823,1.70916451,38736.0,38735.0,0.09248849]
[1610081364624,2.08854327,38736.0,38735.0,0.09248849]
[1610081365025,1.70916451,38736.0,38735.0,0.09248849]
[1610081366226,1.02615273,38736.0,38735.0,0.09248849]
[1610081366627,1.40550697,38736.0,38735.0,0.09248849]
[1610081367027,1.02615273,38736.0,38735.0,0.09248849]
[1610081367830,1.7085757,38736.0,38735.0,0.09248849]
[1610081368030,1.02615273,38736.0,38735.0,0.09248849]
[1610081368433,1.02615273,38736.0,38735.0,0.12411381]
[1610081369129,1.02615273,38736.0,38735.0,0.12253309]
[1610081369629,1.7083017,38736.0,38735.0,0.12253309]
[1610081369830,1.02615273,38736.0,38735.0,0.12253309]
[1610081370231,1.40551093,38736.0,38735.0,0.12253309]
[1610081370630,1.02615273,38736.0,38735.0,0.12253309]
[1610081371030,0.46644719,38736.0,38735.0,0.12253309]
[1610081371831,0.4820945,38736.0,38735.0,0.12253309]
[1610081372232,0.46644719,38736.0,38735.0,0.12253309]
[1610081372533,1.02428227,38736.0,38735.0,0.12253309]
[1610081376437,0.46644719,38736.0,38735.0,0.12253309]
[1610081376938,1.4034567,38736.0,38735.0,0.12253309]
[1610081377338,0.46644719,38736.0,38735.0,0.12253309]
[1610081378741,4.7815731,38736.0,38735.0,0.12253309]
[1610081379145,5.16094665,38736.0,38735.0,0.12253309]
[1610081379545,7.18722994,38736.0,38735.0,0.04348554]
[1610081379747,7.18722994,38736.0,38719.0,0.08343]
[1610081379748,0.11100785,38732.0,38719.0,0.08343]
[1610081379947,0.11100785,38732.0,38708.0,0.06324837]
[1610081380147,3.0757,38721.0,38720.0,0.03196667]
[1610081380346,3.21202608,38721.0,38720.0,0.03196667]
[1610081380548,3.21202608,38721.0,38707.0,0.03196302]
[1610081380747,5.86708549,38721.0,38720.0,0.03196313]
[1610081380947,3.21202608,38721.0,38718.0,0.13122]
[1610081381346,5.86716392,38721.0,38720.0,0.03196351]
[1610081381546,5.86716392,38721.0,38719.0,0.0319634]
[1610081381749,5.29791371,38721.0,38720.0,0.03196313]
[1610081382049,5.86716335,38721.0,38720.0,0.03196313]
[1610081382248,5.86716335,38721.0,38719.0,0.03196299]
[1610081382552,5.86716335,38721.0,38720.0,0.03196315]
[1610081382949,5.29791371,38721.0,38720.0,0.03196315]
[1610081383151,5.29791371,38721.0,38719.0,0.03196462]
[1610081383349,3.89455006,38721.0,38720.0,0.03196293]
[1610081383951,4.6163003,38721.0,38719.0,0.03196265]
[1610081384151,4.6163003,38721.0,38720.0,0.03196269]
[1610081384351,3.8953358,38721.0,38720.0,0.03196269]
[1610081384752,5.29984291,38721.0,38719.0,0.03196274]
[1610081384951,5.29984291,38721.0,38720.0,0.03196292]
[1610081385151,0.8196358,38721.0,38720.0,0.03196292]
[1610081385551,2.22436733,38721.0,38719.0,0.031963]
[1610081385753,2.22436733,38721.0,38720.0,0.03196272]
[1610081385951,0.13632608,38721.0,38720.0,0.03196272]
[1610081386151,0.13632608,38721.0,38719.0,0.03196413]
[1610081386350,2.22453592,38721.0,38719.0,0.03196413]
[1610081386551,2.08820984,38721.0,38719.0,0.03196413]
[1610081386752,0.46604211,38721.0,38719.0,0.03196413]
[1610081387152,0.48172371,38724.0,38719.0,0.03196413]
[1610081387551,0.01568708,38728.0,38719.0,0.03196413]
[1610081387952,0.48177913,38731.0,38719.0,0.03196413]
[1610081388353,0.01568655,38731.0,38727.0,0.13632608]
[1610081388553,0.01569214,38729.0,38727.0,0.25967608]
[1610081388754,0.01569081,38730.0,38727.0,0.25967608]
[1610081388952,0.01569081,38730.0,38728.0,0.03195333]
[1610081389553,0.01569737,38729.0,38728.0,0.03195333]
[1610081389954,0.46642206,38729.0,38728.0,0.03195333]
[1610081390154,4.29161315,38734.0,38728.0,0.03195333]
[1610081390354,0.60276415,38729.0,38728.0,0.03195333]
[1610081390754,1.54213662,38729.0,38728.0,0.03195333]
[1610081390956,0.13632608,38729.0,38728.0,0.03195333]
[1610081391155,2.2268662,38729.0,38728.0,0.03195333]
[1610081391354,5.9924662,38729.0,38728.0,0.03195333]
[1610081391556,5.61305613,38729.0,38719.0,0.03195839]
[1610081391757,5.61305613,38729.0,38728.0,0.03195912]
[1610081391965,3.90192608,38729.0,38728.0,0.03195912]
[1610081392156,3.90192608,38729.0,38719.0,0.03195935]
[1610081392357,3.90192608,38729.0,38718.0,0.13122]
[1610081392358,0.13632608,38720.0,38718.0,0.12963894]
[1610081392558,1.84965992,38720.0,38706.0,0.10274]
[1610081392757,1.84965992,38720.0,38702.0,0.06325088]
[1610081392958,1.48447724,38720.0,38719.0,0.0319626]
[1610081393158,1.48447724,38720.0,38703.0,0.03197114]
[1610081393359,3.57796706,38720.0,38719.0,0.03197318]
[1610081393660,3.57796706,38720.0,38708.0,0.10846]
[1610081393860,4.45095938,38720.0,38719.0,0.0319741]
[1610081394060,1.08522313,38720.0,38719.0,0.0319741]
[1610081394261,1.08522313,38720.0,38709.0,0.0319734]
[1610081394461,4.4543933,38720.0,38719.0,0.03197385]
[1610081394661,4.4543933,38720.0,38710.0,0.03197422]
[1610081395066,4.4543933,38720.0,38719.0,0.03197422]
[1610081395261,0.77988574,38712.0,38711.0,0.0319744]
[1610081395461,0.77988574,38712.0,38708.0,0.10846]
[1610081395662,6.25750446,38712.0,38695.0,0.06328156]
[1610081395861,6.25750446,38712.0,38711.0,0.03197796]
[1610081396062,0.01576065,38697.0,38696.0,0.03197719]
[1610081396262,0.01576065,38697.0,38684.0,0.06329351]
[1610081396463,0.60485188,38697.0,38684.0,0.06329351]
[1610081396662,0.60485188,38697.0,38696.0,0.03197891]
[1610081396864,0.13632608,38697.0,38691.0,0.03197971]
[1610081397063,0.13632608,38697.0,38696.0,0.03197944]
[1610081397265,0.13632608,38697.0,38696.0,0.00033044]
[1610081397463,0.13632608,38697.0,38696.0,0.11518]
[1610081397664,1.54727155,38697.0,38696.0,0.11518]
[1610081397864,0.13632608,38697.0,38696.0,0.14716294]
[1610081398266,2.80450716,38697.0,38696.0,0.14716294]
[1610081398671,3.0163939,38697.0,38696.0,0.14716294]
[1610081398870,3.0163939,38697.0,38674.0,0.06329854]
[1610081399068,3.58675666,38697.0,38674.0,0.06329854]
[1610081399267,3.801,38689.0,38674.0,0.06329854]
[1610081399470,3.801,38689.0,38656.0,3.841]
[1610081399471,0.01578988,38683.0,38656.0,3.841]
[1610081399667,0.01578988,38683.0,38675.0,0.031989]
[1610081399868,0.01579032,38680.0,38675.0,0.147369]
[1610081400068,0.01579032,38680.0,38675.0,0.11538]
[1610081400269,0.56297951,38683.0,38676.0,0.03198817]
[1610081400270,0.01578984,38683.0,38676.0,0.03198817]
[1610081400471,0.01578954,38684.0,38676.0,0.03198817]
[1610081400870,0.01579869,38683.0,38676.0,0.03198817]
[1610081401070,0.4707,38682.0,38676.0,0.03198817]
[1610081401270,0.01579869,38683.0,38676.0,0.03198817]
[1610081401473,0.01579341,38684.0,38676.0,0.03198817]
[1610081401671,3.319,38679.0,38676.0,0.03198817]
[1610081402271,0.13632608,38677.0,38676.0,0.03198817]
[1610081402971,0.60592215,38677.0,38676.0,0.03198817]
[1610081403371,1.54910653,38677.0,38676.0,0.03198817]
[1610081404573,0.60592215,38677.0,38676.0,0.03198817]
[1610081405073,1.16887877,38677.0,38676.0,0.03198817]
[1610081405473,0.60592215,38677.0,38676.0,0.03198817]
[1610081405875,1.54839713,38677.0,38676.0,0.03198817]
[1610081407776,1.53839713,38677.0,38676.0,0.03198817]
[1610081408577,2.22465984,38677.0,38675.0,0.11379711]
[1610081408777,2.22465984,38677.0,38667.0,0.12734]
[1610081408980,1.84478183,38677.0,38667.0,0.12734]
[1610081409177,1.84478183,38677.0,38668.0,0.03199921]
[1610081409378,0.5615763,38670.0,38668.0,0.03199921]
[1610081409577,4.1483,38669.0,38668.0,0.03199921]
[1610081409779,1.02886186,38669.0,38668.0,0.03199921]
[1610081410377,1.02886186,38669.0,38668.0,0.16832529]
[1610081410579,0.0157273,38672.0,38668.0,0.16832529]
[1610081410779,0.48294149,38682.0,38668.0,0.16832529]
[1610081410979,0.48294149,38682.0,38672.0,3.9958]
[1610081411381,0.48279308,38690.0,38672.0,3.9958]
[1610081411584,0.48279308,38690.0,38673.0,0.09527768]
[1610081411783,0.01571626,38699.0,38673.0,0.09527768]
[1610081412183,0.48259986,38705.0,38673.0,0.09527768]
[1610081412383,0.48259986,38705.0,38701.0,0.13632608]
[1610081412584,0.01571381,38707.0,38701.0,0.22064608]
[1610081412783,0.01571381,38707.0,38702.0,0.03197037]
[1610081412985,0.48260627,38709.0,38702.0,0.03197037]
[1610081413384,0.56934452,38719.0,38702.0,0.03197037]
[1610081413385,0.48264252,38710.0,38702.0,0.03197037]
[1610081413784,0.0157148,38709.0,38702.0,0.03197037]
[1610081414186,0.48264745,38708.0,38702.0,0.03197037]
[1610081414385,0.13632608,38703.0,38702.0,0.03197037]
[1610081414987,0.01571814,38710.0,38702.0,4.27427037]
[1610081415387,0.01571978,38713.0,38703.0,0.03196393]
[1610081415786,0.01571852,38715.0,38703.0,0.03196393]
[1610081416188,0.01571733,38717.0,38703.0,0.03196393]
[1610081416387,0.01571733,38717.0,38716.0,0.13632608]
[1610081416587,0.13632608,38719.0,38716.0,0.25816608]
[1610081416588,0.61916983,38719.0,38716.0,0.25816608]
[1610081416789,0.61916983,38719.0,38716.0,0.29012654]
[1610081416988,0.1520473,38719.0,38717.0,0.03196005]
[1610081417590,0.1520473,38719.0,38717.0,0.00033025]
[1610081417789,0.1520473,38719.0,38718.0,0.00033025]
[1610081417790,0.13632608,38719.0,38718.0,0.00033025]
[1610081418189,0.60357749,38719.0,38718.0,0.00033025]
[1610081418389,0.46725141,38719.0,38718.0,0.13632608]
[1610081418590,0.01572754,38721.0,38718.0,0.13665631]
[1610081418789,0.01572754,38721.0,38718.0,0.16828369]
[1610081418990,0.01572729,38722.0,38718.0,0.16828369]
[1610081419190,0.01572729,38722.0,38719.0,0.03195728]
[1610081419392,0.15205412,38723.0,38719.0,0.03195728]
[1610081419590,0.01572804,38723.0,38719.0,0.03195728]
[1610081419791,0.01572536,38728.0,38719.0,0.03195728]
[1610081419990,0.01572536,38728.0,38723.0,3.71]
[1610081420192,0.77863877,38738.0,38723.0,3.71]
[1610081420193,0.01572282,38736.0,38723.0,3.71]
[1610081420391,0.01572282,38736.0,38735.0,0.13632608]
[1610081420593,0.56057305,38739.0,38735.0,0.13632608]
[1610081420594,0.01571871,38738.0,38736.0,0.5784]
[1610081420993,0.01571863,38740.0,38737.0,0.00033008]
[1610081422296,0.01571442,38741.0,38737.0,0.00033008]
[1610081422496,0.01571442,38741.0,38740.0,0.13632608]
[1610081422697,0.48252764,38744.0,38740.0,0.13632608]
[1610081422896,0.01571093,38744.0,38740.0,0.13632608]
[1610081423096,0.48252658,38744.0,38741.0,0.00033004]
[1610081423496,0.01571093,38744.0,38741.0,0.00033004]
[1610081423898,0.01570728,38745.0,38741.0,0.00033004]
[1610081424299,0.01570746,38746.0,38741.0,0.00033004]
[1610081424499,0.13632608,38742.0,38741.0,0.00033004]
[1610081425099,0.6029407,38742.0,38741.0,0.00033004]
[1610081425500,1.16276773,38742.0,38741.0,0.00033004]
[1610081425699,1.16276773,38742.0,38740.0,0.13599604]
[1610081425898,0.6029407,38742.0,38740.0,0.13599604]
[1610081426099,0.01570173,38741.0,38740.0,0.13599604]
[1610081426498,0.61863965,38742.0,38740.0,0.13632978]
[1610081426899,0.01569895,38742.0,38741.0,0.00033374]
[1610081427501,0.01569554,38743.0,38741.0,0.00033374]
[1610081427903,0.01569572,38742.0,38741.0,0.00033374]
[1610081428304,0.01569556,38743.0,38741.0,0.00033374]
[1610081429105,0.46392852,38742.0,38741.0,0.00033374]
[1610081429506,0.93012475,38742.0,38741.0,0.00033374]
[1610081430109,0.46392852,38742.0,38741.0,0.00033374]
[1610081431507,0.46598584,38748.0,38741.0,0.00033374]
[1610081431706,0.46599041,38751.0,38741.0,0.00033374]
[1610081432107,0.4659986,38749.0,38741.0,0.00033374]
[1610081432507,0.13632608,38742.0,38741.0,0.00033374]
[1610081433109,0.46588679,38748.0,38741.0,0.00033374]
[1610081433312,0.46588025,38749.0,38741.0,0.00033374]
[1610081434111,0.46576442,38748.0,38741.0,0.00033374]
[1610081434513,0.46576442,38748.0,38747.0,0.13632608]
[1610081434713,0.46576442,38748.0,38747.0,0.79909608]
[1610081434914,0.46565925,38751.0,38747.0,0.79909608]
[1610081435112,0.46565925,38751.0,38747.0,0.79942978]
[1610081435311,0.46565925,38751.0,38748.0,0.0003337]
[1610081435512,0.86909612,38765.0,38748.0,0.0003337]
[1610081435513,0.46565221,38752.0,38748.0,0.0003337]
[1610081436514,0.46540457,38753.0,38751.0,0.13632608]
[1610081436914,0.46540457,38753.0,38752.0,0.0003337]
[1610081437114,0.55845608,38753.0,38751.0,0.13474601]
[1610081437314,1.02386346,38753.0,38751.0,0.13474601]
[1610081437714,0.46529558,38752.0,38751.0,0.13474601]
[1610081438015,1.02362712,38752.0,38751.0,0.13474601]
[1610081438215,1.02362712,38752.0,38751.0,0.13507971]
[1610081438615,0.46529558,38752.0,38751.0,0.13507971]
[1610081438815,1.40274245,38752.0,38751.0,0.13507971]
[1610081439216,1.40274245,38752.0,38751.0,0.16668934]
[1610081439416,1.02352348,38752.0,38751.0,0.16668934]
[1610081439817,0.46529558,38752.0,38751.0,0.16668934]
[1610081440317,0.46511939,38753.0,38751.0,0.16668934]
[1610081440517,0.13632608,38752.0,38751.0,0.16668934]
[1610081440718,1.15940808,38752.0,38751.0,0.03194333]
[1610081440919,1.53866646,38752.0,38747.0,0.08807]
[1610081441119,1.53866646,38752.0,38751.0,0.00033374]
[1610081441319,1.53866646,38752.0,38751.0,0.11593]
[1610081441521,0.81829893,38752.0,38751.0,0.11593]
[1610081441720,2.22055329,38752.0,38751.0,0.11626377]
[1610081441919,1.75554381,38752.0,38751.0,0.14787738]
[1610081442320,1.53858261,38752.0,38751.0,0.14787738]
[1610081444224,1.15931812,38752.0,38751.0,0.14787738]
[1610081444725,0.60133773,38752.0,38751.0,0.14787738]
[1610081445726,0.13632608,38752.0,38751.0,0.14787738]
[1610081445926,0.13632608,38752.0,38751.0,0.64787732]
[1610081446326,0.13632608,38752.0,38751.0,0.71109851]
[1610081447726,0.13632608,38752.0,38751.0,0.70951854]
[1610081454436,0.46406305,38757.0,38751.0,0.70951854]
[1610081454635,0.46406305,38757.0,38756.0,0.13632608]
[1610081454837,0.46391672,38762.0,38756.0,0.13632608]
[1610081455037,0.46391672,38762.0,38756.0,0.66825693]
[1610081455238,0.46380092,38775.0,38761.0,4.1098]
[1610081455437,0.46380092,38775.0,38761.0,4.2385]
[1610081455640,0.46354726,38786.0,38761.0,4.2385]
[1610081455838,0.46354726,38786.0,38762.0,0.09510605]
[1610081456038,0.4634684,38790.0,38762.0,0.59510605]
[1610081456638,0.46316865,38794.0,38789.0,0.13632608]
[1610081456837,0.55577151,38796.0,38789.0,0.13632608]
[1610081456838,0.55577151,38796.0,38789.0,0.25110608]
[1610081457037,0.46311308,38801.0,38789.0,0.25110608]
[1610081457237,0.46311308,38801.0,38790.0,0.0319141]
[1610081457438,0.46307904,38804.0,38790.0,0.0319141]
[1610081457838,0.46270062,38808.0,38790.0,0.0319141]
[1610081458139,0.46270062,38808.0,38790.0,0.5319141]
[1610081458337,0.46237665,38809.0,38790.0,0.5319141]
[1610081458537,0.46237665,38809.0,38808.0,0.13632608]
[1610081458738,0.46237665,38809.0,38808.0,0.27327608]
[1610081458937,0.46237665,38809.0,38808.0,0.27360945]
[1610081459938,0.46237665,38809.0,38808.0,0.77203105]
[1610081460338,0.46237665,38809.0,38808.0,1.19953105]
[1610081460539,0.46212301,38810.0,38808.0,1.19953105]
[1610081460940,0.01936721,38813.0,38808.0,1.19953105]
[1610081461139,0.01936721,38813.0,38809.0,0.0003333]
[1610081461742,0.01936721,38813.0,38809.0,0.5003333]
[1610081462242,0.01936721,38813.0,38810.0,0.03190203]
[1610081462444,0.46143338,38822.0,38810.0,0.03190203]
[1610081462643,0.4613183,38827.0,38821.0,0.13632608]
[1610081462844,0.46090822,38837.0,38826.0,3.3261]
[1610081463245,0.67592705,38842.0,38826.0,3.3261]
[1610081463246,0.46084057,38840.0,38826.0,3.3261]
[1610081463444,0.46084057,38840.0,38827.0,0.00033317]
[1610081463845,0.46036949,38849.0,38827.0,0.03188903]
[1610081464246,0.46029083,38854.0,38827.0,0.03188903]
[1610081464445,0.46029083,38854.0,38845.0,3.0662]
[1610081464645,0.46029083,38854.0,38853.0,0.13632608]
[1610081464847,0.4597357,38860.0,38853.0,0.27298608]
[1610081465245,0.5516522,38862.0,38853.0,0.27298608]
[1610081465246,0.45972152,38862.0,38853.0,0.13666]
[1610081465645,0.85801407,38877.0,38853.0,0.13666]
[1610081465646,0.45933513,38861.0,38853.0,0.13666]
[1610081465846,0.54427513,38861.0,38845.0,3.0662]
[1610081466046,0.45934427,38856.0,38845.0,3.0662]
[1610081466249,0.45935865,38855.0,38845.0,3.0662]
[1610081466648,0.13632608,38846.0,38845.0,3.20252608]
[1610081466848,0.13632608,38846.0,38845.0,3.0662]
[1610081467449,0.13632608,38846.0,38834.0,0.0166]
[1610081468048,0.45913104,38852.0,38834.0,0.0166]
[1610081468249,0.45913104,38852.0,38835.0,3.055]
[1610081468651,0.45913104,38852.0,38851.0,0.13632608]
[1610081469150,0.45913104,38852.0,38840.0,0.0982]
[1610081469752,0.45916635,38853.0,38840.0,0.0982]
[1610081470154,0.45916635,38853.0,38846.0,0.5]
[1610081470354,0.45917514,38852.0,38846.0,0.5]
[1610081470553,0.45917514,38852.0,38846.0,0.49842313]
[1610081470753,0.45917514,38852.0,38834.0,0.0166]
[1610081470754,0.13632608,38847.0,38839.0,0.13632608]
[1610081471656,0.45932442,38850.0,38834.0,0.0166]
[1610081472056,0.45932442,38850.0,38835.0,0.5]
[1610081472256,0.45932442,38850.0,38847.0,0.5]
[1610081472457,0.45919586,38851.0,38847.0,0.5]
[1610081472658,0.45919586,38851.0,38850.0,0.13632608]
[1610081472860,0.45917046,38854.0,38850.0,0.13632608]
[1610081473360,0.45916342,38857.0,38850.0,0.13632608]
[1610081473759,0.45896762,38858.0,38850.0,0.13632608]
[1610081473959,0.45896762,38858.0,38850.0,0.63632608]
[1610081474160,0.45897058,38857.0,38851.0,0.5]
[1610081474760,0.45897058,38857.0,38856.0,0.13632608]
[1610081474960,0.55059674,38858.0,38856.0,0.13632608]
[1610081475362,0.45875215,38858.0,38856.0,0.13632608]
[1610081475763,0.45864586,38857.0,38856.0,0.13632608]
[1610081476463,0.45864586,38857.0,38856.0,0.05750888]
[1610081476662,0.59497194,38857.0,38856.0,0.05750888]
[1610081477365,0.59497194,38857.0,38852.0,0.5]
[1610081477564,0.59497194,38857.0,38839.0,0.08991]
[1610081477565,0.13632608,38857.0,38843.0,3.8991]
[1610081477764,0.13632608,38857.0,38856.0,0.5]
[1610081478765,0.13632608,38857.0,38856.0,0.63632608]
[1610081479165,0.13632608,38857.0,38856.0,0.13632608]
[1610081480765,0.45804791,38860.0,38856.0,0.13474976]
[1610081481164,0.45804762,38859.0,38856.0,0.13474976]
[1610081481365,0.55183762,38859.0,38856.0,0.13474976]
[1610081481566,0.09379,38859.0,38856.0,0.13474976]
[1610081482367,0.55170062,38859.0,38856.0,0.13474976]
[1610081482666,0.13632608,38857.0,38856.0,0.13474976]
[1610081483266,0.13632608,38857.0,38856.0,0.63474976]
[1610081483468,0.13632608,38857.0,38856.0,0.63508266]
[1610081484666,0.13632608,38857.0,38856.0,0.5003329]
[1610081484868,0.13632608,38857.0,38856.0,0.0003329]
[1610081485269,0.13632608,38857.0,38856.0,0.5]
[1610081485469,0.13632608,38857.0,38856.0,0.50000184]
[1610081486070,0.45767864,38861.0,38856.0,0.50000184]
[1610081486270,0.45754146,38862.0,38856.0,4.43750184]
[1610081486472,0.45754146,38862.0,38857.0,0.00033472]
[1610081486674,0.45745279,38866.0,38861.0,0.13632608]
[1610081486871,0.13632608,38869.0,38861.0,0.13632608]
[1610081487069,0.13632608,38869.0,38862.0,0.00033469]
[1610081487271,0.13632608,38869.0,38862.0,0.03186298]
[1610081487470,0.13632608,38869.0,38862.0,0.53186298]
[1610081487871,0.13632608,38869.0,38863.0,0.03186324]
[1610081488673,0.45720002,38874.0,38867.0,0.13632608]
[1610081488870,0.45719897,38875.0,38867.0,0.13632608]
[1610081489073,0.45719897,38875.0,38868.0,0.03186123]
[1610081489672,0.45715873,38876.0,38868.0,0.03186123]
[1610081490074,0.45715728,38875.0,38868.0,0.03186123]
[1610081490274,0.59306728,38875.0,38868.0,0.03186123]
[1610081490474,0.13591,38875.0,38868.0,0.03186123]
[1610081490673,0.13632608,38869.0,38868.0,0.03186123]
[1610081490876,0.13632608,38869.0,38867.0,0.1347502]
[1610081492273,0.13591,38875.0,38867.0,0.1347502]
[1610081492673,0.13632608,38869.0,38867.0,0.1347502]
[1610081503292,0.45836594,38880.0,38868.0,0.5644]
[1610081503491,0.45836594,38880.0,38868.0,0.66434]
[1610081503692,0.67219876,38885.0,38868.0,0.66434]
[1610081503693,0.45866768,38883.0,38868.0,0.66434]
[1610081503891,0.45866768,38883.0,38869.0,0.09488224]
[1610081504092,0.45864602,38886.0,38869.0,0.09488224]
[1610081504491,0.45897511,38885.0,38869.0,0.09488224]
[1610081504693,0.43897511,38885.0,38869.0,0.09488224]
[1610081504893,0.13632608,38885.0,38884.0,0.13475074]
[1610081505093,0.13632608,38885.0,38884.0,0.05598328]
[1610081505492,0.13632608,38885.0,38884.0,0.05631782]
[1610081505694,0.13632608,38885.0,38884.0,0.00033454]
[1610081506192,0.13632608,38885.0,38868.0,0.66434]
[1610081506193,0.13632608,38885.0,38869.0,0.03185134]
[1610081506393,0.68791762,38885.0,38869.0,0.03185134]
[1610081506592,0.68791762,38885.0,38884.0,0.00033454]
[1610081506792,0.68791762,38885.0,38876.0,0.13632608]
[1610081506992,0.68791762,38885.0,38884.0,0.00033452]
[1610081507193,0.13632608,38885.0,38877.0,0.03184863]
[1610081507592,0.68833219,38885.0,38877.0,0.03184863]
[1610081507993,0.93006716,38884.0,38877.0,0.03184863]
[1610081508793,0.13632608,38878.0,38877.0,0.03184863]
[1610081509193,0.13632608,38878.0,38872.0,0.13632608]
[1610081509393,0.13632608,38878.0,38877.0,0.03184936]
[1610081509593,0.13632608,38878.0,38873.0,0.03184984]
[1610081509995,1.74381385,38878.0,38877.0,0.00033455]
[1610081510194,1.74381385,38878.0,38874.0,0.0003346]
[1610081510395,1.74381385,38878.0,38865.0,0.03152495]
[1610081510396,2.135116,38878.0,38865.0,0.03152495]
[1610081510594,2.00098235,38875.0,38865.0,0.03152495]
[1610081510793,0.13632608,38866.0,38864.0,0.5]
[1610081510994,1.23150353,38865.0,38864.0,0.5]
[1610081511393,1.32768353,38865.0,38864.0,0.5]
[1610081511594,2.47706034,38865.0,38864.0,0.50033473]
[1610081511793,3.34070123,38865.0,38864.0,0.50033473]
[1610081511993,3.41790123,38865.0,38864.0,0.50033473]
[1610081512394,3.41790123,38865.0,38864.0,0.26388261]
[1610081512596,4.49951047,38865.0,38864.0,0.26388261]
[1610081512793,4.49951047,38865.0,38864.0,0.00033473]
[1610081513396,4.49951047,38865.0,38840.0,0.03187031]
[1610081513596,4.49951047,38865.0,38864.0,0.00033475]
[1610081513797,0.17338,38865.0,38841.0,0.00033475]
[1610081514096,0.17338,38865.0,38864.0,0.00033475]
[1610081514298,0.09618,38865.0,38842.0,0.00033472]
[1610081514698,4.35183892,38865.0,38840.0,0.03187028]
[1610081514898,2.1194546,38873.0,38840.0,0.03187028]
[1610081514899,0.68295041,38853.0,38850.0,0.13632608]
[1610081515497,1.36574563,38872.0,38850.0,0.13632608]
[1610081515498,0.55876474,38852.0,38851.0,0.03186409]
[1610081515696,0.55876474,38852.0,38851.0,0.03152941]
[1610081515899,0.55959737,38854.0,38851.0,0.03186408]
[1610081516298,0.55955376,38855.0,38851.0,0.15758872]
[1610081516499,0.55955376,38855.0,38852.0,0.00033464]
[1610081516699,0.55955376,38855.0,38852.0,0.03185921]
[1610081516898,0.55955376,38855.0,38854.0,0.13632608]
[1610081517097,0.56017557,38857.0,38854.0,0.13632608]
[1610081517298,0.56017557,38857.0,38854.0,0.16818222]
[1610081517499,0.56062381,38858.0,38855.0,0.03185518]
[1610081517901,0.56061291,38860.0,38855.0,0.03185518]
[1610081518500,0.56061291,38860.0,38855.0,0.53185518]
[1610081518701,0.56061291,38860.0,38856.0,0.5]
[1610081518901,0.13632608,38864.0,38856.0,0.53185442]
[1610081519101,0.13632608,38864.0,38857.0,0.03185426]
[1610081519302,0.6857311,38860.0,38857.0,0.03185426]
[1610081519501,0.6857311,38860.0,38857.0,0.53185426]
[1610081519705,1.24811376,38858.0,38857.0,0.53185426]
[1610081519902,1.24811376,38858.0,38851.0,0.12605931]
[1610081520104,0.68644697,38858.0,38857.0,0.53185509]
[1610081520304,1.62627864,38858.0,38857.0,0.03185509]
[1610081520503,1.62627864,38858.0,38852.0,0.5318549]
[1610081520704,0.78003645,38860.0,38857.0,0.53185505]
[1610081520903,0.13632608,38858.0,38857.0,0.5]
[1610081521103,2.54432344,38858.0,38857.0,0.5]
[1610081521506,2.54432344,38858.0,38857.0,0.53185677]
[1610081522107,2.54432344,38858.0,38857.0,0.03185677]
[1610081522809,2.54432344,38858.0,38857.0,0.53185677]
[1610081523410,1.62731517,38858.0,38857.0,0.59489597]
[1610081524310,1.06518028,38858.0,38857.0,0.53185677]
[1610081524512,0.94099633,38858.0,38857.0,0.53185677]
[1610081524911,0.56283511,38858.0,38857.0,0.59488857]
[1610081525113,0.56283511,38858.0,38857.0,0.53185256]
[1610081525513,0.56283511,38858.0,38857.0,0.59488658]
[1610081525714,1.01172959,38869.0,38857.0,0.59488658]
[1610081525715,0.78155443,38864.0,38857.0,0.53185256]
[1610081525914,0.78155443,38864.0,38857.0,0.59488528]
[1610081526113,0.68777746,38860.0,38858.0,0.5]
[1610081526312,0.68777746,38860.0,38858.0,0.50033454]
[1610081526514,0.68774402,38861.0,38859.0,0.53185035]